Body,Body Name,Service Label,Service Code,Expenditure Category,Expenditure Code,Narrative,Date ,Transaction Number,Amount,Capital/Revenue/Precept,Supplier Name,Supplier ID
32UB,Boston Borough Council,"Arts, Heritage & Tourism",3407,Publicity,3513,MARCH - JUNE 21 LINCS FM,05/07/2021,223867,1820.4,Revenue,Bauer Radio Ltd,469
32UB,Boston Borough Council,Building Mtc-Public Buildings,4402,Materials,3006,MONTHLY VISITS MARCH 21,09/07/2021,223925,524.25,Revenue,Integrated Water Services Ltd,11294
32UB,Boston Borough Council,Building Mtc-Public Buildings,4402,Materials,3006,QUARTERLY VISITS APRIL 21,09/07/2021,226054,587.94,Revenue,Integrated Water Services Ltd,11294
32UB,Boston Borough Council,Vehicle Holding Account,2206,Miscellaneous,3905,STEAM CLEANING VEHICLES APRIL 2021,30/07/2021,226274,1615,Revenue,Peter Smith Commercials Ltd,11923
32UB,Boston Borough Council,Elections,3103,Postages,3405,11.04.21 - 29.04.21 POST CHARGES,23/07/2021,226459,254.76,Revenue,Royal Mail,86
32UB,Boston Borough Council,Covid 19,3246,Miscellaneous,3905,AGENCY ADMIN,02/07/2021,226585,363.15,Revenue,Workforce (Boston) Limited,11042
32UB,Boston Borough Council,Legal Services,1402,Shared Services,3323,APRIL 2021 LEGAL & COUNSEL FEES,02/07/2021,226723,5334.75,Revenue,Lincolnshire County Council,12322
32UB,Boston Borough Council,Building Mtc-Public Buildings,4402,Materials,3006,MONTHLY VISITS MAY 2021,09/07/2021,226725,573.46,Revenue,Integrated Water Services Ltd,11294
32UB,Boston Borough Council,Vehicle Holding Account,2206,Materials,3006,VO12 YTS - RCV HIRE MAY 2021,02/07/2021,226742,2720,Revenue,Euro Municipal Ltd,13250
32UB,Boston Borough Council,Building Mtc-Public Buildings,4402,Materials,3006,GMLP - AIR BLOWER,02/07/2021,226802,865,Revenue,Saunatec,786
32UB,Boston Borough Council,Credit Control Unit,1013,Transaction Costs,4701,MAY 2021 TRANSACTION CHARGES,02/07/2021,226819,1075.45,Revenue,Capita Software Services Limited,121
32UB,Boston Borough Council,Vehicle Holding Account,2206,Miscellaneous,3905,STEAM CLEANING VEHICLES MAY 2021,16/07/2021,226820,1415,Revenue,Peter Smith Commercials Ltd,11923
32UB,Boston Borough Council,Grounds Maintenance,4401,Materials,3006,"22 X 16-INCH ROUND, 15 X 20-INCH ROUND,32 X 14-INCH HALF-MOON, 26 X 24-INCH HALF-MOON",02/07/2021,226825,623.26,Revenue,Cheer'S Nurseries Limited,984
32UB,Boston Borough Council,Grounds Maintenance,4401,Materials,3006,"6 PACK DAHLIA, A TOTAL OF 3000 PLANTS.",02/07/2021,226826,545,Revenue,Cheer'S Nurseries Limited,984
32UB,Boston Borough Council,Grounds Maintenance,4401,Materials,3006,HANGING BASKETS - 80 REQUIRED.,02/07/2021,226827,921.6,Revenue,Cheer'S Nurseries Limited,984
32UB,Boston Borough Council,Green Homes Grant,3517,Green Homes Phase 2,4025,TRAINING COURSE - RETROFIT CO-ORDINATOR,09/07/2021,226936,1099,Revenue,Retrofit Academy,16693
32UB,Boston Borough Council,Legal Services,1402,Shared Services,3323,PROFESSIONAL FEES 31.07.21-23.10.21,02/07/2021,226937,524.5,Revenue,Wilkin Chapman Solicitors,1154
32UB,Boston Borough Council,Legal Services,1402,Shared Services,3323,PROFESSIONAL FEES 28.01.21-17.02.21,02/07/2021,226938,2822,Revenue,Wilkin Chapman Solicitors,1154
32UB,Boston Borough Council,Elections,3103,Postages,3405,08.05.21-22.05.21 RESPONSE PLUS,02/07/2021,226942,594.58,Revenue,Royal Mail,86
32UB,Boston Borough Council,Vehicle Holding Account,2206,Sfs Fixed Maintenance,3042,VK70 XZW - DAMAGED SAFETY ARM,09/07/2021,226945,320.13,Revenue,Specialist Fleet Services Ltd,16163
32UB,Boston Borough Council,Street Cleansing Service,3235,Specialist Services,4602,COLLECTION OF SHARPS WASTE 1100LTR BIN 06/21,02/07/2021,226946,500,Revenue,Healthguard Ltd,3406
32UB,Boston Borough Council,"Arts, Heritage & Tourism",3407,Publicity,3513,HERITAGE OPEN DAYS 2021,09/07/2021,226950,500,Revenue,Heritage Trust Of Lincolnshire Ltd,660
32UB,Boston Borough Council,Building Mtc-Public Buildings,4402,Materials,3006,CEMETERY LODGE - GAS SERVICE,02/07/2021,226954,391,Revenue,Glen Farrow Uk Ltd,12204
32UB,Boston Borough Council,Vehicle Holding Account,2206,Red Diesel,2214,"2,500 LITRES RED DIESEL",09/07/2021,226957,1125,Revenue,Pace Fuelcare,4927
32UB,Boston Borough Council,Mayfair,3425,Event Costs,3925,FOCUS 20.21 ADVERT,02/07/2021,226963,300,Revenue,Waltons Publications Limited,453
32UB,Boston Borough Council,Vehicle Holding Account,2206,Sfs Payg,3043,VK70 XZX - REPLACED DAMAGED O/S LIFTER,09/07/2021,226988,372.2,Revenue,Specialist Fleet Services Ltd,16163
32UB,Boston Borough Council,Vehicle Holding Account,2206,Sfs Payg,3043,VK70 XZW - BARRIER ARM DAMAGED,09/07/2021,226989,360.76,Revenue,Specialist Fleet Services Ltd,16163
32UB,Boston Borough Council,Community Champions: La Fund,1019,Training Courses,1108,HOU0333-SERVICE-MENTAL HEALTH FIRST AIDER TRAINING,09/07/2021,227059,2300,Revenue,Orchard Health And Wellbeing Consultancy,16489
32UB,Boston Borough Council,Towns Fund - Pe21,3426,Professional Services,3301,LEVELLING UP FUND BID,09/07/2021,227060,7500,Revenue,Rose Regeneration Limited,14694
32UB,Boston Borough Council,It Investment Programme,6201,Purchases,8005,APC UPS 6000VA AS PER QUOTE 106257,09/07/2021,227063,6633,Capital,Vohkus Limited,16678
32UB,Boston Borough Council,Community Testing Centre,3516,Overtime Payments,1022,W.E. 12.06.21 ,02/07/2021,227069,976.6,Revenue,Aligra Personnel Limited,16541
32UB,Boston Borough Council,Community Testing Centre,3516,Equipment Purchase,3001,18.05.21-21.05.21 HIRE,02/07/2021,227070,293.25,Revenue,Trusthorpe Village Hall,16616
32UB,Boston Borough Council,Community Testing Centre,3516,Equipment Purchase,3001,25.05.21-28.05.21 HIRE,02/07/2021,227071,293.25,Revenue,Trusthorpe Village Hall,16616
32UB,Boston Borough Council,Community Testing Centre,3516,Equipment Purchase,3001,01.06.21-04.06.21 HIRE,02/07/2021,227072,293.25,Revenue,Trusthorpe Village Hall,16616
32UB,Boston Borough Council,Community Testing Centre,3516,Equipment Purchase,3001,08.06.21-11.06.21 HIRE,02/07/2021,227073,293.25,Revenue,Trusthorpe Village Hall,16616
32UB,Boston Borough Council,Community Testing Centre,3516,Equipment Purchase,3001,03.05.21-28.05.21 HIRE OF HALL,02/07/2021,227076,1026,Revenue,Stanhope Hall,16710
32UB,Boston Borough Council,Community Testing Centre,3516,Equipment Purchase,3001,07.06.21-30.06.21 HIRE OF HALL,02/07/2021,227077,969,Revenue,Stanhope Hall,16710
32UB,Boston Borough Council,Community Testing Centre,3516,Overtime Payments,1022,W.E. 19.06.21 ,02/07/2021,227106,976.6,Revenue,Aligra Personnel Limited,16541
32UB,Boston Borough Council,Refuse Collection,3234,Agency Staff,1032,SUPPLY OF TEMPORARY STAFF W.E 20.06.21,02/07/2021,227108,8033.41,Revenue,Comensura Ltd,9671
32UB,Boston Borough Council,Grounds Maintenance,4401,Agency Staff,1032,SUPPLY OF TEMPORARY STAFF W.E 20.06.21,02/07/2021,227108,448.05,Revenue,Comensura Ltd,9671
32UB,Boston Borough Council,Central Training & Recruitment,2001,Training Courses,1108,SEQ LEVEL 2 TEACHING SWIMMING - THEORY ONLY,16/07/2021,227110,272,Revenue,Institute Of Swimming,12482
32UB,Boston Borough Council,Office Cleaning,3203,Agency Staff,1032,CLEANERS X2,16/07/2021,227116,569.53,Revenue,Workforce (Boston) Limited,11042
32UB,Boston Borough Council,Development Management,3306,Community Archaeologist,4606,APRIL-SEPT CONSERVATION CONSULTANCY,16/07/2021,227117,8750,Revenue,Heritage Trust Of Lincolnshire Ltd,660
32UB,Boston Borough Council,Towns Fund - Pe21,3426,Professional Services,3301,WORK SUPPORTING LEVELLING UP BID,16/07/2021,227118,3500,Revenue,Heritage Trust Of Lincolnshire Ltd,660
32UB,Boston Borough Council,Refuse Collection,3234,Mobile Phones,3406,SERVICE PERIOD 20.05.21-19.06.21,05/07/2021,227119,258.5,Revenue,Kcom Group Plc,11400
32UB,Boston Borough Council,Community Testing Centre,3516,Overtime Payments,1022,TEMPORARY WORKERS W.E. 13.06.21,02/07/2021,227123,4536,Revenue,Als Managed Services Limited,16620
32UB,Boston Borough Council,Community Testing Centre,3516,Overtime Payments,1022,TEMPORARY WORKERS W.E. 06.06.21,02/07/2021,227124,4835.25,Revenue,Als Managed Services Limited,16620
32UB,Boston Borough Council,Community Testing Centre,3516,Equipment Purchase,3001,03.05.21-30.06.21 ROOM HIRE,02/07/2021,227126,1000,Revenue,Magna Vitae Leisure Trust,13539
32UB,Boston Borough Council,Community Testing Centre,3516,Overtime Payments,1022,RECLAIM OF GRANT FUND,02/07/2021,227132,561.54,Revenue,Public Sector Partnership Services Ltd,16086
32UB,Boston Borough Council,Finance,1502,Professional Services,3301,JUNE 2021 SERVICES,02/07/2021,227133,238097.42,Revenue,Public Sector Partnership Services Ltd,16086
32UB,Boston Borough Council,Refuse Collection,3234,Provisions / Purchases,3008,"SP-3864 40,000 BLACK REFUSE SACKS 457X737X965MM ON A ROLL (20)",09/07/2021,227136,2576,Revenue,Pmc Polythene Ltd,8341
32UB,Boston Borough Council,Recycling,3238,Recycle Bags,3025,SP-3847 BLUE (4021) REFUSE SACKS 381X737X838MM,09/07/2021,227137,2198,Revenue,Pmc Polythene Ltd,8341
32UB,Boston Borough Council,Photocopiers,2503,Photocopier Rental,3906,04.06.21-03.09.21 PHOTOCOPIER RENTAL,05/07/2021,227150,1407.41,Revenue,Capita Software Services Limited,121
32UB,Boston Borough Council,Credit Control Unit,1013,Recovery Costs,4617,FEES PAID DIRECT & VAT ON COUNCIL TAX,16/07/2021,227152,308.26,Revenue,Bristow Sutor,8383
32UB,Boston Borough Council,Leisure Pool Services,3434,Badges / Certificates,3010,AWARDS,16/07/2021,227156,1078.4,Revenue,Swim England Trading Limited,950
32UB,Boston Borough Council,Housing Advice & Homelessness,3241,Salaries,1001,"DELL LATITUDE 3510,I5,15.6"",8GB,256GB",16/07/2021,227210,604.01,Revenue,Insight Uk,5973
32UB,Boston Borough Council,Housing Advice & Homelessness,3241,Salaries,1001,"DELL LATITUDE 3510,I5,15.6"",8GB,256GB",16/07/2021,227211,604.01,Revenue,Insight Uk,5973
32UB,Boston Borough Council,Bereavement,2401,Plant Maintenance,2012,CREMATORIUM UNIVERSAL COFFIN LOADER BLACK.,23/07/2021,227218,1580,Revenue,A.R.Twigg & Son Ltd,12850
32UB,Boston Borough Council,Commercial Waste,3237,Refuse Bin Purchase,3865,"1,100 LITRE PURPLE BINS",09/07/2021,227219,11166.75,Revenue,A & C Weber Uk Ltd,11142
32UB,Boston Borough Council,Marketing And Communications,1003,Language Line,3908,18.06.21 MULTILINGUAL VIRTUAL ASSISTANCE,02/07/2021,227223,547,Revenue,Pab Languages Centre,11529
32UB,Boston Borough Council,Street Cleansing Service,3235,Provisions / Purchases,3008,LITTER PICKER PRO,23/07/2021,227227,494.5,Revenue,The Helping Hand Company Ledbury Limited,324
32UB,Boston Borough Council,Vehicle Holding Account,2206,Materials,3006,EU66 TKD - RCV HIRE JUNE 21,16/07/2021,227229,2800,Revenue,Euro Municipal Ltd,13250
32UB,Boston Borough Council,Markets,3424,Advertising,3203,MARKET ADVERT CAMPAIGN 04.07.21,16/07/2021,227231,400,Revenue,Radiant Media Limited,16340
32UB,Boston Borough Council,Leisure Pool Services,3434,Clothing,3150,CLOTHING,16/07/2021,227238,664.85,Revenue,Corporate Leisure,8142
32UB,Boston Borough Council,Community Testing Centre,3516,Overtime Payments,1022,W.E. 26.06.21 ,09/07/2021,227241,976.6,Revenue,Aligra Personnel Limited,16541
32UB,Boston Borough Council,Community Testing Centre,3516,Overtime Payments,1022,TEMPORARY WORKERS W.E. 27.06.21,09/07/2021,227243,3402,Revenue,Als Managed Services Limited,16620
32UB,Boston Borough Council,Balance Sheet,7000,Capita 360 - Council Tax,9381,ADJUSTMENT FOR 21356070 CAPITA PAY360,02/07/2021,227245,846,Revenue,Capita Software Services Limited,121
32UB,Boston Borough Council,Refuse Collection,3234,Agency Staff,1032,SUPPLY OF TEMPORARY STAFF W.E 29.06.21,05/07/2021,227252,7661.06,Revenue,Comensura Ltd,9671
32UB,Boston Borough Council,Grounds Maintenance,4401,Agency Staff,1032,SUPPLY OF TEMPORARY STAFF W.E 29.06.21,05/07/2021,227252,464.33,Revenue,Comensura Ltd,9671
32UB,Boston Borough Council,Bereavement,2401,Clothing,3150,JACKETS - STAYPRESSED BLACK - REGULAR 44 INCH,16/07/2021,227261,259.98,Revenue,Lyn Oakes Limited,8670
32UB,Boston Borough Council,Building Mtc-Public Buildings,4402,Materials,3006,HUSSEY TOWER QTR ENDING 30.06.21,23/07/2021,227287,1056.1,Revenue,Heritage Trust Of Lincolnshire Ltd,660
32UB,Boston Borough Council,Bereavement,2401,Medical Assessors Fees,3302,MEDICAL REFEREE DUTIES JUNE 2021,09/07/2021,227292,1054.5,Revenue,Dr Andrew Doddrell,10098
32UB,Boston Borough Council,Leisure Pool Services,3434,Professional Services,3301,FITNESS CLASSES - JUNE 21,23/07/2021,227294,260,Revenue,Top Banana Fitness,16459
32UB,Boston Borough Council,Finance,1502,Software Maintenance,3408,13.08.21-12.08.22EFIN BUSINESS TAX PORTAL,16/07/2021,227306,567,Revenue,Advanced Business Solutions,6527
32UB,Boston Borough Council,Office Cleaning,3203,Agency Staff,1032,CLEANER,16/07/2021,227347,317.74,Revenue,Workforce (Boston) Limited,11042
32UB,Boston Borough Council,Building Mtc-Public Buildings,4402,Materials,3006,GMLC - ANNUAL SERVICING,16/07/2021,227348,1015,Revenue,Glen Farrow Uk Ltd,12204
32UB,Boston Borough Council,Vehicle Holding Account,2206,Miscellaneous,3905,STEAM CLEANING VEHICLES JUNE 2021,16/07/2021,227433,2560,Revenue,Peter Smith Commercials Ltd,11923
32UB,Boston Borough Council,Building Mtc-Public Buildings,4402,Materials,3006,FIRE ALARM - D & A SERVICE CONTRACT,23/07/2021,227434,501.69,Revenue,Chubb Fire & Security Limited,447
32UB,Boston Borough Council,Refuse Collection,3234,Postages,3405,06.06.21 - 24.06.21 POST CHARGES,23/07/2021,227436,259.87,Revenue,Royal Mail,86
32UB,Boston Borough Council,Leisure Pool Services,3434,Water Rates,2050,27.05.21-26.06.21 ROWLEY ROAD,09/07/2021,227437,898.88,Revenue,Wave,13339
32UB,Boston Borough Council,Community Testing Centre,3516,Equipment Purchase,3001,HIRE 22.06.21-25.06.21,09/07/2021,227453,293.25,Revenue,Trusthorpe Village Hall,16616
32UB,Boston Borough Council,Community Testing Centre,3516,Equipment Purchase,3001,HIRE 29.06.21-02.07.21,09/07/2021,227454,293.25,Revenue,Trusthorpe Village Hall,16616
32UB,Boston Borough Council,Development Management,3306,Agency Staff,1032,BBC/ELDC TOWN PLANNING CONSULTANCY,30/07/2021,227456,4218,Revenue,Gd Planning,16774
32UB,Boston Borough Council,Community Testing Centre,3516,Overtime Payments,1022,OFFICERS & SUPERVISORS W.E 03.07.21,16/07/2021,227465,1449.8,Revenue,Aligra Personnel Limited,16541
32UB,Boston Borough Council,Vehicle Holding Account,2206,Sfs Fixed Maintenance,3042,LS20 XDB - RAVE PLATE SENSOR DAMAGED,30/07/2021,227468,354,Revenue,Specialist Fleet Services Ltd,16163
32UB,Boston Borough Council,Vehicle Holding Account,2206,Sfs Payg,3043,MOT/SERVICE YS18 CZE FLEET NUMBER VF84 - LABOUR,30/07/2021,227470,390,Revenue,Specialist Fleet Services Ltd,16163
32UB,Boston Borough Council,Vehicle Holding Account,2206,Sfs Fixed Maintenance,3042,REPLACE RAVE PLATE HINGES AND REPAIR SIDE PAN,30/07/2021,227471,727.49,Revenue,Specialist Fleet Services Ltd,16163
32UB,Boston Borough Council,Building Mtc-Public Buildings,4402,Materials,3006,HILDA STREET REPLACED COLUMN,30/07/2021,227472,1200,Revenue,Eon Uk Energy Services,8014
32UB,Boston Borough Council,National Assistance Burials,3440,Transfer Payments,4900,PUBLIC HEATH FUNERAL,16/07/2021,227489,1700,Revenue,Carr Funeral Service,8815
32UB,Boston Borough Council,Building Mtc-Public Buildings,4402,Materials,3006,MONTHLY VISITS JUNE 21,23/07/2021,227496,573.46,Revenue,Integrated Water Services Ltd,11294
32UB,Boston Borough Council,Central Purchasing,1010,Corporate Publications,3202,SHELLFISH MOVEMENT PERMIT PADS,09/07/2021,227504,772,Revenue,Chris Cook Print And Office Supplies,22
32UB,Boston Borough Council,Building Mtc-Public Buildings,4402,Materials,3006,28.05.21-28.05.22 GUILDHALL DOORS,23/07/2021,227506,571,Revenue,Clymac Limited,6768
32UB,Boston Borough Council,Bereavement,2401,Plant Maintenance,2012,THERMOCOUPLES,16/07/2021,227509,583.6,Revenue,Matthews Environmental Solutions Limited,15719
32UB,Boston Borough Council,Bus And Coach Station,3445,Business Rates,2040,2021-22 BUS STATION,09/07/2021,227511,2145.7,Revenue,Boston Borough Council,1433
32UB,Boston Borough Council,Depot,2405,Business Rates,2040,2021-22 16 MAYFLOWER UNITS,09/07/2021,227512,2070.85,Revenue,Boston Borough Council,1433
32UB,Boston Borough Council,Bus And Coach Station,3445,Business Rates,2040,2021-22 BUS & COACH STATION,09/07/2021,227516,5988,Revenue,Boston Borough Council,1433
32UB,Boston Borough Council,Public Conveniences,3204,Business Rates,2040,2021-22 PARK GATE TOILETS,09/07/2021,227517,2544.9,Revenue,Boston Borough Council,1433
32UB,Boston Borough Council,Parking,3449,Business Rates,2040,2021-22 SPAYNE RD CP,09/07/2021,227520,2495,Revenue,Boston Borough Council,1433
32UB,Boston Borough Council,Municipal Buildings,2404,Business Rates,2040,2021-22 OFFICES & PREMISES,09/07/2021,227521,44800,Revenue,Boston Borough Council,1433
32UB,Boston Borough Council,Parking,3449,Business Rates,2040,2021-22 WIDE BARGATE CP,09/07/2021,227522,24950,Revenue,Boston Borough Council,1433
32UB,Boston Borough Council,Parking,3449,Business Rates,2040,2021-22 CUSTOM HOUSE CP,09/07/2021,227523,4890.2,Revenue,Boston Borough Council,1433
32UB,Boston Borough Council,Parking,3449,Business Rates,2040,2021-22 BLUE ST CP,09/07/2021,227524,1347.3,Revenue,Boston Borough Council,1433
32UB,Boston Borough Council,Parking,3449,Business Rates,2040,2021-22 DOUGHTY QUAY CP,09/07/2021,227525,4990,Revenue,Boston Borough Council,1433
32UB,Boston Borough Council,Parking,3449,Business Rates,2040,2021-22 BOTOLPH ST CP,09/07/2021,227528,4241.5,Revenue,Boston Borough Council,1433
32UB,Boston Borough Council,Parking,3449,Business Rates,2040,2021-22 BARGATE LODGE CP,09/07/2021,227529,5489,Revenue,Boston Borough Council,1433
32UB,Boston Borough Council,Parking,3449,Business Rates,2040,2021-22 ARTILLERY ROW CP,09/07/2021,227531,2694.6,Revenue,Boston Borough Council,1433
32UB,Boston Borough Council,Depot,2405,Business Rates,2040,2021-22 ST JOHNS DEPOT,09/07/2021,227533,11102.75,Revenue,Boston Borough Council,1433
32UB,Boston Borough Council,Parking,3449,Business Rates,2040,2021-22 FYDELL CRESCENT CP,09/07/2021,227534,3243.5,Revenue,Boston Borough Council,1433
32UB,Boston Borough Council,Parking,3449,Business Rates,2040,2021-22 IRBY ST CP,09/07/2021,227539,611.28,Revenue,Boston Borough Council,1433
32UB,Boston Borough Council,Parking,3449,Business Rates,2040,2021-22 GEORGE ST CP,09/07/2021,227540,3343.3,Revenue,Boston Borough Council,1433
32UB,Boston Borough Council,Parking,3449,Business Rates,2040,2021-22 FYDELL CRESCENT CP,09/07/2021,227541,9231.5,Revenue,Boston Borough Council,1433
32UB,Boston Borough Council,Parking,3449,Business Rates,2040,2021-22 STH SQUARE CP,09/07/2021,227543,4840.3,Revenue,Boston Borough Council,1433
32UB,Boston Borough Council,Markets,3424,Business Rates,2040,2021-22 ADJ 47 WIDE BARGATE,09/07/2021,227544,1921.15,Revenue,Boston Borough Council,1433
32UB,Boston Borough Council,"Arts, Heritage & Tourism",3407,Business Rates,2040,2021-22 GUILDHALL,09/07/2021,227545,4865.25,Revenue,Boston Borough Council,1433
32UB,Boston Borough Council,Parking,3449,Business Rates,2040,2021-22 TUNNARD ST CP,09/07/2021,227547,13223.5,Revenue,Boston Borough Council,1433
32UB,Boston Borough Council,Parking,3449,Business Rates,2040,2021-22 BUOY YARD STH END,09/07/2021,227548,4091.8,Revenue,Boston Borough Council,1433
32UB,Boston Borough Council,Garfits Lane Playing Field,3421,Business Rates,2040,2021-22 SPORTS GROUND,09/07/2021,227555,2544.9,Revenue,Boston Borough Council,1433
32UB,Boston Borough Council,Bereavement,2401,Business Rates,2040,2021-22 CREMATORIUM,09/07/2021,227556,23652.6,Revenue,Boston Borough Council,1433
32UB,Boston Borough Council,Markets,3424,Business Rates,2040,2021-22 MARKET PLACE,09/07/2021,227557,28160,Revenue,Boston Borough Council,1433
32UB,Boston Borough Council,Public Conveniences,3204,Business Rates,2040,2021-22 WIDE BARGATE W/C,09/07/2021,227558,3143.7,Revenue,Boston Borough Council,1433
32UB,Boston Borough Council,Parking,3449,Business Rates,2040,2021-22 SPAIN PLACE CP,09/07/2021,227559,1921.15,Revenue,Boston Borough Council,1433
32UB,Boston Borough Council,Public Conveniences,3204,Business Rates,2040,2021-22 LINCOLN LANE W/C,09/07/2021,227560,2944.1,Revenue,Boston Borough Council,1433
32UB,Boston Borough Council,Parking,3449,Business Rates,2040,2021-22 ST GEORGES RD CP,09/07/2021,227561,28416,Revenue,Boston Borough Council,1433
32UB,Boston Borough Council,Parking,3449,Business Rates,2040,2021-22 WEST END CP,09/07/2021,227562,11227.5,Revenue,Boston Borough Council,1433
32UB,Boston Borough Council,Princess Royal Sports Arena,3452,Business Rates,2040,2021-22 PRSA,09/07/2021,227564,659.56,Revenue,Boston Borough Council,1433
32UB,Boston Borough Council,Leisure Pool Services,3434,Business Rates,2040,2021-22 GMLC,09/07/2021,227565,95744,Revenue,Boston Borough Council,1433
32UB,Boston Borough Council,Parking,3449,Business Rates,2040,2021-22 STH QUAY CP,09/07/2021,227566,1974.33,Revenue,Boston Borough Council,1433
32UB,Boston Borough Council,Elections,3103,Election Staff Fees & Exp,1030,DESIGN & DELIVERY ONLINE POLLING STATION,09/07/2021,227571,1007,Revenue,Association Of Electoral Administrators,1132
32UB,Boston Borough Council,Credit Control Unit,1013,Transaction Costs,4701,TRANSACTION CHARGES MAY 21,09/07/2021,227572,528.93,Revenue,Capita Software Services Limited,121
32UB,Boston Borough Council,Blg Control (Non Fee Earning),3202,Microfiche,3512,SCANNING OF 470 BUILDING CONTROL FILES,23/07/2021,227575,1824.01,Revenue,Microcopy Systems Ltd,9346
32UB,Boston Borough Council,Bed & Breakfast,3222,Bed And Breakfast Accom Fees,3306,11.01.21-22.04.21 ACCOMMODATION,09/07/2021,227583,4545,Revenue,West End Rooms,14537
32UB,Boston Borough Council,Housing Advice & Homelessness,3241,Miscellaneous,3905,18.06.21-08.07.21 ACCOMMODATION,09/07/2021,227599,1050,Revenue,The Lord Grey Hotel,14612
32UB,Boston Borough Council,Covid 19,3246,Miscellaneous,3905,SECURITY 18.06.21-24.06.21,09/07/2021,227608,1176,Revenue,The New England Hotel,15731
32UB,Boston Borough Council,Covid 19,3246,Miscellaneous,3905,18.06.21-24.06.21 RENT,09/07/2021,227609,2940,Revenue,The New England Hotel,15731
32UB,Boston Borough Council,Covid 19,3246,Miscellaneous,3905,25.06.21-01.07.21 RENT,09/07/2021,227610,2940,Revenue,The New England Hotel,15731
32UB,Boston Borough Council,Covid 19,3246,Miscellaneous,3905,25.06.21-01.07.21 SECURITY,09/07/2021,227611,1176,Revenue,The New England Hotel,15731
32UB,Boston Borough Council,Community Testing Centre,3516,Overtime Payments,1022,TEMPORARY WORKERS W.E. 04.07.21,23/07/2021,227615,1464.75,Revenue,Als Managed Services Limited,16620
32UB,Boston Borough Council,Office Cleaning,3203,Agency Staff,1032,CLEANER X 2,23/07/2021,227616,521.57,Revenue,Workforce (Boston) Limited,11042
32UB,Boston Borough Council,Vehicle Holding Account,2206,Materials,3006,RCV HIRE VO12 YTS 31.05 & 01-03 JULY 21,30/07/2021,227626,680,Revenue,Euro Municipal Ltd,13250
32UB,Boston Borough Council,Building Mtc-Public Buildings,4402,Materials,3006,GMLC - 24.03.21 AHU NOT WORKING,23/07/2021,227628,329,Revenue,Glen Farrow Uk Ltd,12204
32UB,Boston Borough Council,Dog Collection,3219,Professional Services,3301,DOG COLLECTION,16/07/2021,227629,1120.83,Revenue,Pestinator Uk Ltd,13043
32UB,Boston Borough Council,Vehicle Holding Account,2206,Tyres,2208,TYRE MAINTENANCE CONTRACT  JULY 2021,16/07/2021,227630,2674.71,Revenue,B A Bush & Son Ltd,12196
32UB,Boston Borough Council,Refuse Collection,3234,Agency Staff,1032,SUPPLY OF TEMPORARY STAFF W.E 04.07.21,16/07/2021,227631,7538.36,Revenue,Comensura Ltd,9671
32UB,Boston Borough Council,Registration Of Electors,3109,Books And Publications,3007,PARKER LAW CONDUCT ELECTIONS ISSUE 69,23/07/2021,227635,450,Revenue,Lexisnexis Butterworths,680
32UB,Boston Borough Council,Environmental Protection,3216,Air Quality / Contam Land,3913,AIR QUALITY ANNUAL STATUS REPORT 2021,30/07/2021,227715,1260,Revenue,Bureau Veritas Uk Ltd,1082
32UB,Boston Borough Council,National Assistance Burials,3440,Transfer Payments,4900,PUBLIC HEATH FUNERAL,16/07/2021,227716,1900,Revenue,F E Addlesee & Son Ltd,879
32UB,Boston Borough Council,Covid 19,3246,Subscriptions,3600,05.06.21-04.07.21 MICROSOFT TEAMS,23/07/2021,227719,1041.67,Revenue,Phoenix Software Ltd,644
32UB,Boston Borough Council,Leisure Pool Services,3434,Rental Of Phone System,3418,FIBRESTREAM RENTAL AUGUST 2021,16/07/2021,227720,368,Revenue,Multidata Ltd,12625
32UB,Boston Borough Council,Refuse Collection,3234,Refuse Bin Purchase,3865,240 LITRE GREEN BINS WITH BBC LOGO ,16/07/2021,227723,3951,Revenue,A & C Weber Uk Ltd,11142
32UB,Boston Borough Council,Recycling,3238,Refuse Bin Purchase,3865,240 LITRE BLUE BINS WITH BBC LOGO ,16/07/2021,227723,3951,Revenue,A & C Weber Uk Ltd,11142
32UB,Boston Borough Council,Recycling,3238,Refuse Bin Purchase,3865,240 LITRE BROWN BINS WITH BBC LOGO ,16/07/2021,227723,7902,Revenue,A & C Weber Uk Ltd,11142
32UB,Boston Borough Council,Finance,1502,Procurement S/S Agreement,3800,PROCUREMENT SERVICES APRIL-JUNE 21,16/07/2021,227725,4876.18,Revenue,Borough Council Of Kings Lynn & West Norfolk,1011
32UB,Boston Borough Council,Princess Royal Sports Arena,3452,Gas,2022,BULK PROPANE 30.06.21,23/07/2021,227727,9565.38,Revenue,Calor Gas Limited,13658
32UB,Boston Borough Council,Building Mtc-Public Buildings,4402,Materials,3006,REPLACEMENT POLE BRACKET,30/07/2021,227733,425,Revenue,Eon Uk Energy Services,8014
32UB,Boston Borough Council,Parking,3449,Cash Collection & Counting,4621,CASH COLLECTED,23/07/2021,227737,1177.94,Revenue,Kings Armoured Security Services Ltd,10472
32UB,Boston Borough Council,Building Mtc-Public Buildings,4402,Materials,3006,MULTIPORT VALVE GMLC,30/07/2021,227747,671.4,Revenue,Topline Electonics Ltd,2649
32UB,Boston Borough Council,Refuse Collection,3234,Agency Staff,1032,AGENCY W/E 11.07.21,23/07/2021,227752,8223.68,Revenue,Comensura Ltd,9671
32UB,Boston Borough Council,Grounds Maintenance,4401,Agency Staff,1032,AGENCY W/E 11.07.21,23/07/2021,227752,455.98,Revenue,Comensura Ltd,9671
32UB,Boston Borough Council,Office Cleaning,3203,Agency Staff,1032,CLEANERS X 2,23/07/2021,227754,653.46,Revenue,Workforce (Boston) Limited,11042
32UB,Boston Borough Council,Credit Control Unit,1013,Transaction Costs,4701,TRANSACTIONS JUNE 21,23/07/2021,227867,1564.51,Revenue,Capita Software Services Limited,121
32UB,Boston Borough Council,Municipal Buildings,2404,Agency Staff,1032,SECURITY SERVICES JUNE 21,30/07/2021,227873,6733.35,Revenue,National Westminister Bank Plc,13781
32UB,Boston Borough Council,Municipal Buildings,2404,Agency Staff,1032,SECURITY SERVICES MAY 21,30/07/2021,227874,5789.53,Revenue,National Westminister Bank Plc,13781
32UB,Boston Borough Council,Building Mtc-Public Buildings,4402,Materials,3006,SERVICE INCLUDING PARTS 200521,30/07/2021,228133,725,Revenue,Topline Electonics Ltd,2649
32UB,Boston Borough Council,Building Mtc-Public Buildings,4402,Materials,3006,"LORRY,SKIP & CLEARANCE 160721",30/07/2021,228157,500,Revenue,Sg Services (Boston) Limited,8668
32UB,Boston Borough Council,Office Cleaning,3203,Agency Staff,1032,CLEANERS X 2,30/07/2021,228159,665.45,Revenue,Workforce (Boston) Limited,11042
32UB,Boston Borough Council,Corporate & Democratic Core,3102,Subscriptions,3600,EAST MIDLANDS COUNCILS 21-22,30/07/2021,228173,5375,Revenue,Nottingham City Council,11821
32UB,Boston Borough Council,Covid 19,3246,Miscellaneous,3905,02.07.21-08.07.21 RENT,23/07/2021,228175,2940,Revenue,The New England Hotel,15731
32UB,Boston Borough Council,Covid 19,3246,Miscellaneous,3905,SECURITY 02.07.21-08.07.21,23/07/2021,228177,1176,Revenue,The New England Hotel,15731
32UB,Boston Borough Council,Covid 19,3246,Miscellaneous,3905,SECURITY 09.07.21-15.07.21,23/07/2021,228178,1176,Revenue,The New England Hotel,15731
32UB,Boston Borough Council,Covid 19,3246,Miscellaneous,3905,RENT 09.07.21-15.07.21,23/07/2021,228179,2940,Revenue,The New England Hotel,15731
32UB,Boston Borough Council,Bed & Breakfast,3222,Bed And Breakfast Accom Fees,3306,ROOM RENT 06.07.21-15.07.21,23/07/2021,228181,945,Revenue,The New England Hotel,15731
32UB,Boston Borough Council,Photocopiers,2503,Plant Maintenance,2012,MON PRINTS AND COLOUR PRINTS,30/07/2021,228257,265.1,Revenue,Capita Software Services Limited,121
32UB,Boston Borough Council,Credit Control Unit,1013,Recovery Costs,4617,PROFESSIONAL CHARGES UP TO 18072,30/07/2021,228260,532,Revenue,Wilkin Chapman Solicitors,1154
32UB,Boston Borough Council,Covid 19,3246,Miscellaneous,3905,REPAIRS TO PROPERTY DAMAGE,30/07/2021,228263,3625,Revenue,Smart Move Design & Build Limited,15988
32UB,Boston Borough Council,Covid 19,3246,Miscellaneous,3905,HOUSING REPAIRS/CLEANING,30/07/2021,228264,340,Revenue,Smart Move Design & Build Limited,15988
32UB,Boston Borough Council,Covid 19,3246,Miscellaneous,3905,16.07.21-22.07.21 ROOM RENT,30/07/2021,228266,2940,Revenue,The New England Hotel,15731
32UB,Boston Borough Council,Covid 19,3246,Miscellaneous,3905,16.07.21-22.07.21 SECURITY,30/07/2021,228267,1176,Revenue,The New England Hotel,15731
32UB,Boston Borough Council,Grants General,3455,Miscellaneous,3905,ARCHITECTS FEE SA1456,30/07/2021,228271,6210,Revenue,The Parish Of Boston,388
32UB,Boston Borough Council,Refuse Collection,3234,Agency Staff,1032,TEMPORARY STAFF W.E 18.07.21,30/07/2021,228283,7135.1,Revenue,Comensura Ltd,9671
32UB,Boston Borough Council,Grounds Maintenance,4401,Agency Staff,1032,TEMPORARY STAFF W.E 18.07.21,30/07/2021,228283,455.98,Revenue,Comensura Ltd,9671
32UB,Boston Borough Council,Housing Advice & Homelessness,3241,Project Costs,3935,CORE GRANT 2021-22,30/07/2021,228297,24187,Revenue,Centrepoint Outreach,1345
32UB,Boston Borough Council,Grants General,3455,Voluntary Org Grants,3602,CORE GRANT 2021-22,30/07/2021,228297,4500,Revenue,Centrepoint Outreach,1345
32UB,Boston Borough Council,Bed & Breakfast,3222,Bed And Breakfast Accom Fees,3306,INDIVIDUAL RENT 16.07.21-22.07.21,30/07/2021,228298,630,Revenue,The New England Hotel,15731
32UB,Boston Borough Council,Corporate & Democratic Core,3102,P'Ship Pay & Conts To Schemes,3601,PA CONSULTING WORK,30/07/2021,228303,24286,Revenue,West Lindsey District Council,3949
32UB,Boston Borough Council,Internal Communications,2504,Data Connections,3430,BROADBAND CHARGES APRIL - SEPT 21,30/07/2021,228322,3536.32,Revenue,Lincolnshire County Council,12322
32UB,Boston Borough Council,Elections,3103,Hire Of Halls,3931,06.05.21 HALL HIRE ELECTIONS,30/07/2021,228323,380,Revenue,Wyberton Parish Council,179
32UB,Boston Borough Council,Blg Control (Non Fee Earning),3202,Professional Services,3301,"COTTAGE, NORTH END CALL OUT",30/07/2021,228328,395.4,Revenue,Foundations & Buildings Ltd,14624
32UB,Boston Borough Council,Blg Control (Non Fee Earning),3202,Professional Services,3301,CONTRACTOR'S FEE FOR MAKING BUILDING SAFE,30/07/2021,228328,800,Revenue,Foundations & Buildings Ltd,14624
32UB,Boston Borough Council,Bereavement,2401,Gas,2022,GAS - CREM - 30.04.21-31.05.21,01/07/2021,71071,1223.03,Revenue,ESPO,
32UB,Boston Borough Council,Municipal Buildings,2404,Gas,2022,GAS - MUNICIPAL BUILDINGS- 30.04.21-31.05.21,01/07/2021,71071,463.94,Revenue,ESPO,
32UB,Boston Borough Council,"Arts, Heritage & Tourism",3407,Gas,2022,GAS - GUILDHALL - 30.04.21 - 31.05.21,01/07/2021,71071,410.68,Revenue,ESPO,
32UB,Boston Borough Council,Leisure Pool Services,3434,Gas,2022,GAS - GMLC - 30.04.21-31.05.21,01/07/2021,71071,3881.14,Revenue,ESPO,
32UB,Boston Borough Council,Council Tax Summary Account,5000,Ct Requirement Lcc,7801,LINCS COUNTY COUNCIL ADDITIONAL PRECEPT,02/07/2021,71105,100522.6,Precept,Lincolnshire County Council,
32UB,Boston Borough Council,Council Tax Summary Account,5000,Ct Requirement Lpa,7802,LINCS POLICE PRECPT,02/07/2021,71105,526213.99,Precept,Lincs Police,
32UB,Boston Borough Council,Council Tax Summary Account,5000,Ct Requirement Lcc,7801,LINCS COUNTY COUNCIL PRECEPT,02/07/2021,71105,2696234.93,Precept,Lincolnshire County Council,
32UB,Boston Borough Council,Nndr Control Account,5103,Lincs County Council Share,7266,LINCS COUNTY COUNCIL NNDR SHARE,02/07/2021,71105,112975.4,Precept,Lincolnshire County Council,
32UB,Boston Borough Council,Internal Communications,2504,Rental Of Phone System,3418,BT DD'S - RECURRING CHARGES - VP 79824270 - 01.06.21-30.06.21,05/07/2021,71112,434.05,Revenue,BT plc,
32UB,Boston Borough Council,Leisure Pool Services,3434,Provisions / Purchases,3008,BOOKER DD RE GMLC - INVOICE 3541997,15/07/2021,71211,259.4,Revenue,Bookers,
32UB,Boston Borough Council,Credit Control Unit,1013,Postages,3405,I-MAIL - BOSTON SUMMONS/REMINDERS - 14.06.21-18.06.21,15/07/2021,71212,821.94,Revenue,UK Mail,
32UB,Boston Borough Council,Housing Services,2203,Postages,3405,I-MAIL - HOUSING SERVICES - 14.06.21-8.06.21,15/07/2021,71212,1612.71,Revenue,UK Mail,
32UB,Boston Borough Council,Nndr Control Account,5103,Central Government Share,7264,BRR CENTRAL SHARE 2021/22,19/07/2021,71237,922825,Precept,DCLG,
32UB,Boston Borough Council,Bereavement,2401,Electricity,2021,ROBIN HOODS WALK CREM - 01.06.21-30.06.21,19/07/2021,71263,777.93,Revenue,Total Gas & Power,
32UB,Boston Borough Council,Municipal Buildings,2404,Electricity,2021,MB - ACCOUNT 3004800128 - 01.06.21-30.06.21,19/07/2021,71263,643.44,Revenue,Total Gas & Power,
32UB,Boston Borough Council,Municipal Buildings,2404,Electricity,2021,MB - ACCOUNT 3005069232 - 01.06.21-30.06.21,19/07/2021,71263,2545.7,Revenue,Total Gas & Power,
32UB,Boston Borough Council,Depot,2405,Electricity,2021,ST JOHN'S RD LORRY PARK - 01.06.21-30.06.21,19/07/2021,71263,256.6,Revenue,Total Gas & Power,
32UB,Boston Borough Council,Redstone Caravan Site,3225,Electricity,2021,"TRAVELLER'S SITE, REDSTONE - 01.06.21-30.06.21",19/07/2021,71263,2394.96,Revenue,Total Gas & Power,
32UB,Boston Borough Council,Leisure Pool Services,3434,Electricity,2021,GMLC - 01.06.21-30.06.21,19/07/2021,71263,3447.08,Revenue,Total Gas & Power,
32UB,Boston Borough Council,Footway Lighting & Mtc,3447,Electricity,2021,FOOTWAY LIGHTING - 01.06.21-30.06.21,19/07/2021,71263,2311.75,Revenue,Total Gas & Power,
32UB,Boston Borough Council,Footway Lighting & Mtc,3447,Electricity,2021,FOOTWAY LIGHTING - 01.05.21-31.05.21,19/07/2021,71263,2470.1,Revenue,Total Gas & Power,
32UB,Boston Borough Council,Parking,3449,Electricity,2021,CAR PARK LIGHTING TICKET MACHINES - 01.06.21-30.06.21,19/07/2021,71263,532.21,Revenue,Total Gas & Power,
32UB,Boston Borough Council,Princess Royal Sports Arena,3452,Electricity,2021,PRSA - 01.06.21-30.06.21,19/07/2021,71263,5272.86,Revenue,Total Gas & Power,
32UB,Boston Borough Council,Corporate & Democratic Core,3102,Bank Charges,3510,BOTTOMLINE MONTHLY BACS AGREEMENT,20/07/2021,71290,671,Revenue,Bottomline Technologies,
32UB,Boston Borough Council,Recycling,3238,Postages,3405,I-MAIL - GARDEN WASTE LETTERS - 21.06.21-25.06.21,22/07/2021,71292,257.76,Revenue,UK Mail,
32UB,Boston Borough Council,Nndr,9006,Business Rates Retention,4006,LINCS CC DD RE B RATES TARIFFS 2021.22,19/07/2021,71366,462664,Precept,Lincolnshire County Council,
32UB,Boston Borough Council,Internal Communications,2504,Rental Of Phone System,3418,FOEHN DD'S MONTHLY,28/07/2021,71388,2692.62,Revenue,Foehn,
32UB,Boston Borough Council,Credit Control Unit,1013,Postages,3405,I-MAIL - CREDIT CONTROL REMINDERS - 28.06.21-02.07.21,29/07/2021,71390,367.1,Revenue,UK Mail,
32UB,Boston Borough Council,Housing Benefits,2507,Postages,3405,I-MAIL - HOUSING BENEFIT - 28.06.21-02.07.21,29/07/2021,71390,369.54,Revenue,UK Mail,
32UB,Boston Borough Council,Local Taxation,2508,Postages,3405,I-MAIL - COUNCIL TAX - 28.06.21-02.07.21,29/07/2021,71390,310.62,Revenue,UK Mail,
32UB,Boston Borough Council,Local Taxation,2508,Postages,3405,I-MAIL - BUSINESS CLASS LOCAL TAX - 28.06.21-02.07.21,29/07/2021,71390,367.37,Revenue,UK Mail,
32UB,Boston Borough Council,Bereavement,2401,Gas,2022,GAS - CREM - 31.05.21-30.06.21,30/07/2021,71391,1277.06,Revenue,ESPO,
32UB,Boston Borough Council,Municipal Buildings,2404,Gas,2022,GAS - MUNICIPAL BUILDINGS - 31.05.21-30.06.21,30/07/2021,71391,285.85,Revenue,ESPO,
32UB,Boston Borough Council,Leisure Pool Services,3434,Gas,2022,GAS - GMLC - 31.05.21-30.06.21,30/07/2021,71391,3273.34,Revenue,ESPO,
32UB,Boston Borough Council,Legal Services,1402,Subscriptions,3600,LEXIS NEXIS DD - REFERENCE DI055369M,30/07/2021,71393,764.44,Revenue,Lexisnexis Butterworths,
32UB,Boston Borough Council,Vehicle Holding Account,2206,Fuel Transport,2201,FUEL TO 4/7/21,31/07/2021,71471,542.66,Revenue,Fuelcard Services,
32UB,Boston Borough Council,Vehicle Holding Account,2206,Fuel Transport,2201,FUEL TO 4/7/21,31/07/2021,71475,1028.94,Revenue,Fuelcard Services,
32UB,Boston Borough Council,Vehicle Holding Account,2206,Fuel Transport,2201,FUEL TO 11/7/21 VU62 HVM,31/07/2021,71478,292.04,Revenue,Fuelcard Services,
32UB,Boston Borough Council,Vehicle Holding Account,2206,Fuel Transport,2201,FUEL TO 11/7/21,31/07/2021,71478,3077.63,Revenue,Fuelcard Services,
32UB,Boston Borough Council,Vehicle Holding Account,2206,Fuel Transport,2201,FUEL TO 11/7/21,31/07/2021,71479,641.01,Revenue,Fuelcard Services,
32UB,Boston Borough Council,Vehicle Holding Account,2206,Fuel Transport,2201,FUEL TO 18/7/21,31/07/2021,71480,803.4,Revenue,Fuelcard Services,
32UB,Boston Borough Council,Vehicle Holding Account,2206,Fuel Transport,2201,FUEL TO 18/7/21 VU62 HVH,31/07/2021,71481,312.56,Revenue,Fuelcard Services,
32UB,Boston Borough Council,Vehicle Holding Account,2206,Fuel Transport,2201,FUEL TO 18/7/21 VU62 HVM,31/07/2021,71481,488.25,Revenue,Fuelcard Services,
32UB,Boston Borough Council,Vehicle Holding Account,2206,Fuel Transport,2201,FUEL TO 18/7/21,31/07/2021,71481,2825.82,Revenue,Fuelcard Services,
32UB,Boston Borough Council,Vehicle Holding Account,2206,Fuel Transport,2201,FUEL TO 25/7/21,31/07/2021,71482,726.99,Revenue,Fuelcard Services,
32UB,Boston Borough Council,Vehicle Holding Account,2206,Fuel Transport,2201,FUEL TO 25/7 VU62 HVM,31/07/2021,71484,291.74,Revenue,Fuelcard Services,
32UB,Boston Borough Council,Vehicle Holding Account,2206,Fuel Transport,2201,FUEL TO 25/7/21,31/07/2021,71484,3030.94,Revenue,Fuelcard Services,
32UB,Boston Borough Council,Vehicle Holding Account,2206,Fuel Transport,2201,FUEL TO 31/7/21 VU62 HVM,31/07/2021,71531,412.81,Revenue,Fuelcard Services,
32UB,Boston Borough Council,Vehicle Holding Account,2206,Fuel Transport,2201,FUEL TO 31/7/21,31/07/2021,71531,3589.92,Revenue,Fuelcard Services,
32UB,Boston Borough Council,Vehicle Holding Account,2206,Fuel Transport,2201,FUEL TO 31.7.21,31/07/2021,71532,341.57,Revenue,Fuelcard Services,
32UB,Boston Borough Council,Vehicle Holding Account,2206,Materials,3006,VEHICLE TAX,16/07/2021,71732,693.75,Revenue,DVLA,
32UB,Boston Borough Council,Members And Mayoral,3106,Software Licences,3407,MEMBERS ENDPOINT PROTECTION RENEWAL,16/07/2021,71732,469.8,Revenue,,
32UB,Boston Borough Council,Bed & Breakfast,3222,Bed And Breakfast Accom Fees,3306,HOMELESS ACCOMMODATION,16/07/2021,71732,416.41,Revenue,,
32UB,Boston Borough Council,Refuse Collection,3234,Clothing,3150,"TROUSERS, BOOTS GLOVES",16/07/2021,71732,466.68,Revenue,,
32UB,Boston Borough Council,Refuse Collection,3234,Clothing,3150,HIVIS SHORTS,16/07/2021,71732,775.5,Revenue,,
32UB,Boston Borough Council,Street Cleansing Service,3235,Clothing,3150,"TROUSERS, BOOTS GLOVES",16/07/2021,71732,276.47,Revenue,,
32UB,Boston Borough Council,Commercial Waste,3237,Refuse Bin Purchase,3865,BINS,16/07/2021,71732,576.65,Revenue,,
32UB,Boston Borough Council,"Arts, Heritage & Tourism",3407,Guildhall Expenses,3027,PRINT RUN OF THE ARTS TRAIL PROGRAMME ETCHED IN TIME,16/07/2021,71732,343.33,Revenue,,
32UB,Boston Borough Council,Leisure Pool Services,3434,Courses And Conferences,3506,NPLQ CANDIDATE PACKS,16/07/2021,71732,346,Revenue,,
32UB,Boston Borough Council,Leisure Pool Services,3434,Miscellaneous,3905,SWIM BAGS,16/07/2021,71732,358,Revenue,,
32UB,Boston Borough Council,Community Testing Centre,3516,Equipment Purchase,3001,VAN HIRE,16/07/2021,71732,360,Revenue,,
32UB,Boston Borough Council,Grounds Maintenance,4401,Equipment Purchase,3001,CUPBOARD,16/07/2021,71732,332.93,Revenue,,
32UB,Boston Borough Council,Grounds Maintenance,4401,Clothing,3150,TROUSERS AND GLOVES,16/07/2021,71732,525.53,Revenue,,
